Cogmind - Beta 17.1 @@@ ROGUE MODE // 2026.08.30 @ 17:01:21 Player: Reverend Result: Destroyed by G-34 Mercenary with Small Laser Performance ------------- Evolutions (0) 0 Regions Visited (1) 200 Robots Destroyed (20) 100 Value Destroyed (370) 370 Prototype IDs (0) 0 Alien Tech Used (0) 0 Bonus (0) 0 TOTAL SCORE: 670 Bonus ------- None Cogmind --------- Core Integrity 0/250 Matter 296/300 Energy 100/100 System Corruption 1% Temperature Cool (52) Movement Walking (260) Ox2 Location -10/Materials Parts ------- > --- POWER (1) -------- (None) > --- PROPULSION (2) --- Aluminum Leg > --- UTILITY (2) ------ Large Storage Unit > --- WEAPON (2) ------- Light Assault Rifle Light Assault Rifle > --- INVENTORY (15) --- Hover Unit Small Storage Unit Medium Matter Pod (5) Peak State ------------ > --- POWER ------------ Light Ion Engine > --- PROPULSION ------- Aluminum Leg Aluminum Leg > --- UTILITY ---------- Heat Sink Tractor Beam > --- WEAPON ----------- EM Pulse Gun Medium Laser > --- INVENTORY -------- Ion Engine Small Laser [Rating: 7] Favorites ----------- Power Ion Engine Engine Ion Engine Propulsion Aluminum Leg Leg Aluminum Leg Utility Terrain Scanner Device Terrain Scanner Storage Large Storage Unit Weapon Medium Laser Energy Gun Medium Laser Ballistic Gun Light Assault Rifle Special Weapon Welding Torch Build | -11 -10 ------- Run | Yrd Mat Slots Evolved . | . . Power . | . . Propulsion . | . . Utility . | . . Weapon . | . . Parts Attached 24 | 6 18 Power 5 | 1 4 Engine 5 | 1 4 Core . | . . Reactor . | . . Propulsion 6 | 2 4 Treads . | . . Leg 6 | 2 4 Wheel . | . . Hover . | . . Flight . | . . Utility 5 | . 5 Device 3 | . 3 Storage 2 | . 2 Processor . | . . Hackware . | . . Protection . | . . Artifact . | . . Weapon 8 | 3 5 Energy Gun 5 | 3 2 Energy Cannon . | . . Ballistic Gun 2 | . 2 Ballistic Cannon . | . . Launcher . | . . Special Weapon 1 | . 1 Impact Weapon . | . . Slashing Weapon . | . . Piercing Weapon . | . . Special Melee Weapon . | . . Unidentified Prototypes . | . . Parts Lost 12 | . 12 Power 3 | . 3 Propulsion 4 | . 4 Utility 3 | . 3 Weapon 2 | . 2 Highest Loss Streak 5 | . 5 To Critical Strikes . | . . Average Backups 1 | 1 1 Power . | . . Propulsion . | . . Utility . | . . Weapon . | . . Tool/Special . | . . Unused Backups 5 | . 5 Power . | . . Propulsion 4 | . 4 Utility 1 | . 1 Weapon . | . . Tool/Special . | . . Average Slot Usage (%) 88 | . 88 Engine 13 | . 13 Leg 24 | . 24 Device 14 | . 14 Storage 8 | . 8 Energy Gun 16 | . 16 Ballistic Gun 6 | . 6 Special Weapon 4 | . 4 Peak Build Rating 7 | 5 7 Average Rating 5 | 4 6 On Entrance 2 | . 5 Avg Prop Armor Cover (%) 8 | . 8 Naked Turns . | . . Heaviest Build 28 | 7 28 Greatest Support 20 | 20 20 Greatest Overweight (x) 4 | . 4 Average Overweight (x) . | . . Largest Inventory Capacity 15 | 5 15 Average Capacity 8 | 5 9 Most Carried 5 | 3 5 Average Carried 1 | 1 1 Final Capacity 15 | 5 15 Final Carried 3 | 3 3 Class Distribution -------------------- 60% | Mutant 39% | Scavenger-Mutant Dominant Class ---------------- Scavenger-Mutant | -10/Materials Resources | -11 -10 ----------- Run | Yrd Mat Matter Collected 492 | 250 242 Remotely 100 | . 100 Salvage Created 563 | 61 502 Parts 43 | 5 38 Haulers Intercepted . | . . Recyclers Shooed . | . . Parts Field Recycled . | . . Retrieved Matter . | . . Parts Self-Destructed . | . . Prevented . | . . Parts Restored . | . . Kills | -11 -10 ------- Run | Yrd Mat Combat Hostiles Destroyed 13 | 1 12 Melee 1 | . 1 Guns 11 | 1 10 AOE 1 | . 1 Classes Destroyed 6 | 2 4 Worker 2 | 1 1 Recycler 1 | . 1 Operator 1 | . 1 Watcher 3 | . 3 Swarmer 6 | . 6 Grunt 7 | 1 6 Best Kill Streak 6 | 1 6 Combat Bots Only 5 | 1 5 Max Kills in Single Turn 3 | 1 3 Gunslinging . | . . Exploded 1 | . 1 Melee 1 | . 1 Uniques/NPCs Destroyed . | . . Combat | -11 -10 -------- Run | Yrd Mat Hostile Shots Fired 119 | 2 117 Missed 29 | . 29 Hits 90 | 2 88 Projectile 90 | 2 88 AOE 1 | . 1 Critical Strikes 3 | . 3 Part Disruptions 1 | . 1 Damage Taken 1162 | 22 1140 Core 253 | . 253 Absorbed by Shields . | . . Core Remaining (%) 100 | 100 . Volleys Fired 79 | 6 73 Largest 2 | 2 2 Hottest 90 | 90 90 Shots Fired 126 | 12 114 Gun 125 | 12 113 Cannon . | . . Launcher . | . . Special 1 | . 1 Kinetic 41 | . 41 Thermal 64 | 12 52 Explosive . | . . Electromagnetic 21 | . 21 Robot Hit Streak 5 | 2 5 Robot Miss Streak 6 | 2 6 Penetration Max . | . . Secondary Targets 1 | . 1 Max Gunslinging Chain 1 | . 1 Shots Hit Robots 54 | 4 50 Core Hits 31 | 3 28 Critical Kills 1 | . 1 Critical Parts Destroyed . | . . Critical Strikes 2 | . 2 Burn 1 | . 1 Destroy 1 | . 1 Melee Attacks . | . . Impact . | . . Slashing . | . . Piercing . | . . Sneak Attacks . | . . Combat Hostiles . | . . Follow-up Attacks . | . . Damage Inflicted 722 | 46 676 Guns 646 | 46 600 Cannons . | . . Explosions 73 | . 73 Melee . | . . Ramming 3 | . 3 Kinetic 150 | . 150 Thermal 418 | 46 372 Explosive . | . . Electromagnetic 151 | . 151 Impact . | . . Slashing . | . . Piercing . | . . Highest Corruption 1 | . 1 Average Corruption 1 | . 1 Corruption Purged . | . . Corruption Blocked . | . . Effects 5 | . 5 Message Errors 1 | . 1 Heat Flow Errors 1 | . 1 Data Loss (minor) 3 | . 3 Overload Shots . | . . Overflow Damage . | . . Projectiles . | . . Explosions . | . . Melee . | . . Knockbacks . | . . Impact . | . . Kinetic . | . . Secondary . | . . Self-Inflicted Damage 1 | . 1 Shots . | . . Rammed 2 | . 2 Targets Rammed 2 | . 2 Kicked . | . . Crushed . | . . Highest Temperature 163 | 60 163 Average Temperature 39 | 27 41 Received Heat Transfer 459 | 12 447 Siege Activations . | . . Martial Activations . | . . Shielding Activations . | . . Robots Disrupted . | . . Combat Hostiles . | . . Robots Corrupted . | . . Combat Hostiles . | . . Parts Fried . | . . Impact Corruptions . | . . Robots Melted . | . . Combat Hostiles . | . . Parts Melted 2 | . 2 Heat Transferred 1017 | 124 893 Parts Sabotaged . | . . Parts Stolen . | . . Parts Stripped . | . . Power Chain Reactions 1 | . 1 Alert | -11 -10 ------- Run | Yrd Mat Maximum Alert Level . | . . Low Security (%) 100 | 100 100 Level 1 . | . . Level 2 . | . . Level 3 . | . . Level 4 . | . . Level 5 . | . . High Security . | . . Max Security . | . . Peak Influence 108 | 20 108 Initial . | . . Average 22 | 1 29 Influence Increases 336 | 25 311 Destroy 0b10 Robot/C 260 | 20 240 Destroy 0b10 Robot/NC 35 | 5 30 Destroy Leader 36 | . 36 Successful Hack 2 | . 2 Destroy Structure 3 | . 3 Influence Decreases 336 | 25 311 Time Decay 285 | 25 260 Lost Part 51 | . 51 Squads Dispatched 2 | . 2 Investigation 1 | . 1 Extermination . | . . Reinforcement 1 | . 1 Assault . | . . Garrison . | . . Intercept . | . . Searches Triggered . | . . Construction Impeded . | . . Haulers Reinforced . | . . Active Scanning Responses . | . . Cargo Convoy Interrupts . | . . Stealth | -11 -10 --------- Run | Yrd Mat Distress Signals 2 | . 2 Communications Jammed . | . . Distress Signals . | . . Times Spotted 29 | 1 28 Peak Tracking Total 5 | 1 5 Tactical Retreats . | . . Traps | -11 -10 ------- Run | Yrd Mat Traps Triggered 1 | . 1 Indirectly . | . . Trap Hack Attempts . | . . Triggered . | . . Disarmed . | . . Reprogrammed . | . . Reused . | . . Traps Extracted . | . . Installed . | . . Triggered . | . . Machines | -11 -10 ---------- Run | Yrd Mat Machines Disabled . | . . Max in Single Turn . | . . Machines Repaired . | . . Machines Dismantled . | . . Machines Sabotaged . | . . Overloaded Fab Kills . | . . Hacking | -11 -10 --------- Run | Yrd Mat Machines Accessed 5 | . 5 Terminals 3 | . 3 Fabricators . | . . Repair Stations 1 | . 1 Recycling Units 1 | . 1 Scanalyzers . | . . Garrison Access . | . . Total Hacks 16 | . 16 Successful 12 | . 12 Failed 4 | . 4 Catastrophic . | . . Database Lockouts . | . . Manual . | . . Terminals 8 | . 8 Fabricators . | . . Repair Stations 5 | . 5 Recycling Units 3 | . 3 Scanalyzers . | . . Garrison Access . | . . Terminal Hacks 7 | . 7 Record 3 | . 3 Alert Level 3 | . 3 Maintenance Status 1 | . 1 Fabricator Hacks . | . . Repair Station Hacks 2 | . 2 Scan Component 2 | . 2 Recycling Unit Hacks 3 | . 3 Process 1 | . 1 Report Inventory 1 | . 1 Retrieve Components 1 | . 1 Scanalyzer . | . . Garrison Access Hacks . | . . Unauthorized Hacks . | . . Terminals . | . . Fabricators . | . . Repair Stations . | . . Recycling Units . | . . Scanalyzers . | . . Garrison Access . | . . Data Cores Recovered . | . . Used . | . . Hacking Detections 5 | . 5 Full Trace Events 2 | . 2 Feedback Events . | . . Feedback Blocked . | . . Robot Schematics Acquired . | . . Robots Built . | . . Authchips . | . . Time . | . . Total Robot Build Rating . | . . Part Schematics Acquired . | . . Parts Built . | . . Authchips . | . . Time . | . . Total Part Build Rating . | . . Part Studies Acquired . | . . Parts Repaired . | . . Time . | . . Parts Recycled . | . . Recycled Matter 159 | . 159 Retrieved Matter . | . . Retrieved Components . | . . Parts Scanalyzed . | . . Part Schematics Acquired . | . . Parts Damaged . | . . Bothacking | -11 -10 ------------ Run | Yrd Mat Used RIF Installer . | . . Robots Hacked . | . . Non-combat . | . . Combat . | . . Robot Hacks Applied . | . . Relay Couplers Released . | . . Fabnet Peak Effective % . | . . Robots Rewired . | . . Allies Hacked . | . . Hacks Repelled . | . . Allies | -11 -10 -------- Run | Yrd Mat Total Allies . | . . Largest Group . | . . Highest-Rated Group . | . . Highest-Rated Ally . | . . Total Orders . | . . Ally Attacks . | . . Total Damage . | . . Kills . | . . Allies Corrupted . | . . Allies Melted . | . . Intel | -11 -10 ------- Run | Yrd Mat Active Infowar (turns) 435 | . 435 Terrain 435 | . 435 Robot Analysis Total . | . . Derelict Logs Recovered . | . . Drone Launches . | . . Drone Recoveries . | . . Exploration | -11 -10 ------------- Run | Yrd Mat Turns Passed 1093 | 242 851 Spaces Moved 577 | 184 393 Core 51 | 25 26 Treads . | . . Legs 526 | 159 367 Wheels . | . . Hover . | . . Flight . | . . Fastest Speed 50 | 50 100 Average Speed 141 | 110 156 Slowest Speed 260 | 120 260 Overloaded Moves . | . . Propulsion Burnouts . | . . Robots Hopped . | . . Potential Cave-ins . | . . Cave-ins Triggered . | . . Exploration Rate (%) 29 | 8 50 Regions Visited 1 Branch Regions . Pre-discovered Areas . | . . Known Exits Taken . | . . Unknown Exits Taken 1 | 1 . Scrap Searched . | . . Spaces Dug . | . . Terrain Destroyed 3 | . 3 Melee . | . . Projectile . | . . AOE 3 | . 3 Terrain Rammed . | . . Walls Destroyed . | . . Machines Disabled . | . . Actions | -11 -10 --------- Run | Yrd Mat Total 726 | 208 518 Wait 12 | 5 7 Move 576 | 183 393 Hop . | . . Pick Up 17 | 6 11 Fast Attach 12 | 2 10 Attach 6 | 3 3 Detach . | . . Swap 11 | 3 8 Drop 11 | . 11 Fire 79 | 6 73 Melee . | . . Ram 2 | . 2 Kick . | . . Crush . | . . Escape Stasis . | . . Rewire . | . . Trap . | . . Miscellaneous . | . . Route ------- -11/Scrapyard -10/Materials (discovered 2 exits: [*Mat] / [*Min]) History --------- Turn | Location | Event 2 | -11/Scrapyard | Met Revision 17 106 | -11/Scrapyard | Discovered new exit (range 8) 243 | -11/Scrapyard | Entered Materials 314 | -10/Materials | Build established: Mutant 544 | -10/Materials | Discovered new exit (range 16) 550 | -10/Materials | Lost 3 parts (1p2u) 619 | -10/Materials | Core integrity fell below 50% 641 | -10/Materials | Lost 5 parts (1p2n2w) 879 | -10/Materials | Core integrity fell below 20% 907 | -10/Materials | Discovered new exit (range 12) 954 | -10/Materials | Build established: Scavenger-Mutant 1094 | -10/Materials | Destroyed by G-34 Mercenary with Small Laser Last Messages --------------- 00928_ Acquired 29 matter. 00947_ W-16 Scout sends out distress signal. 00950_ W-16 Scout suffers critical hit (Destroy). 00950_ W-16 Scout destroyed. 00958_ Acquired Unknown Hover Unit. 00969_ Aluminum Leg destroyed. 00971_ G-34 Mercenary destroyed. 00987_ W-16 Scout destroyed. 00995_ R-06 Scavenger collects Lgt. Ion Engine. 00995_ Acquired Aluminum Leg. 01001_ Acquired 30 matter. 01027_ Acquired Med. Matter Pod. 01056_ OC%XB9G<%JC AKJT3LDZV ESI7 01080_ Critical hit (Burn: +37). 01081_ Terrain Scanner destroyed. 01088_ Ion Engine destroyed. 01088_ Critical hit (Burn: +37). 01089_ Aluminum Leg destroyed. 01090_ Critical hit (Burn: +37). Map ----- +----------------------------------------------------+ | # """ #?? ???????????????????????????????? | | # """ ##?????????????????????????????????? | | ## #??????"???????????????????????????? | | ## #??????????????????????????????????? | | ##############???????##???????????????????????? | | =#???##""!"!""#????? ???? ?????????????????????? | | ##???# "!" " #? ??? ?????? ##?????????????????? | | | %##### * ##+####### #?????????????????? | | ]= = =% #? ???????????????? | | =*= < #?????????????????? | | % #?????????????????? | | ##### ##+####### #?????????????????? | | ##???######### #??????##?????????????????? | | #? ????????#?# """ #?????????????????????????? | | +???? ?? ??### """ #????? ???????????????????? | | #?? ?????#### """ #?????????????????????????? | | #? ?????????## # ????????????????????????? | | #????????????# """ # ??? "???????????????????? | | #????????????# """ # ?? ? ???????????????????? | | ??? ????????# """ #??? ??? ?????????????????? | | ????????? ??# #????????????#????????????? | | ????????????# """ ####+###??????????????????? | | ####????????????# """ ## #??????????????????? | | ????????????????# """ ## ##?????????????????? | | ????????????????# + +?????????????????? | | ????????????????#########@ ##?????????????????? | | ????????????????????????# #??????????????????? | | ???????????????????#????## ##??????????????????? | | ?????????????????????????? #???????????????????? | | ?????????????????????????? #?????? ????????????? | | ?????????????????????????? #???????????????????? | | ?????????????????????????? #?? ????????????????? | | ?????????????????????????? g #???????????????????? | | ??????????????????????????? #???????????????????? | | ??????????????????????????? ???????????????????? | | ??????????????????????????? ???????????????????? | | ????????????????? ????????? g ??????????????????? | | ??????????????????????????? ??????????????????? | | ???????????????????????????? ##?????????????????? | | ?????????????????????????????#???????????????????? | | ?????????????????????????????????????????????????? | | ?????????????????????????????????????????????????? | | ?????????????????????????????????????????????????? | | ?????????????????????????????????????????????????? | | ?????????????????????????????????????????????????? | | ?????????????????????????????????????????????????? | | | | | | | | | +----------------------------------------------------+ Best States ------------- Heat Dissipation 35 Energy Generation 10 Energy Capacity 250 Matter Stores 300 Matter Capacity 300 Sight Range 16 Terrain Scan Range 14 Terrain Scan Density 10 Evasion (%) 55 Item Schematics ----------------- None Robot Schematics ------------------ None Fabricated ------------ Nothing Repaired ---------- Nothing Studied --------- None Alien Tech Used ----------------- None Achievements -------------- Fist Fight For Emergencies Only Organ Harvest There's More Where That Came From Challenges ------------ None Game ------ Seed ArcDisposableSlayer Manual? 0 Play Time 00:36:24 Cumulative 8.2 hours Start 2026.08.30 @ 16:17:43 End 2026.08.30 @ 17:01:21 Sessions 1 Manual Loads 0 Difficulty Rogue Special Mode None Game No. 12 Rogue 12 Adventurer 0 Explorer 0 Win Type - Total 0 Types 0/0/0/0/0/0/0/0/0/0 Lore% 3 Gallery% 8 Achievement% 6 Wizard Run 0 Options --------- Layout 1 ASCII 0 Keyboard 0 Movement Mouse Keybinds 0 Fullscreen 1 Font 48/Smallcaps Map View 50x35 Zoom Use 1% Tactical HUD 1 Map Filters NONE Filters NONE Steam 1 RUN: 9728664c-2551-43bd-968b-5658fc309f4e